fUSD/lending_fUSD_20260613
["ID","MTS","AMOUNT","RATE_DAILY","PERIOD"]
[424942032,1781308240000,-500.0,0.00013356,2]
[424942017,1781308240000,-1800.0,0.000129,4]
[424942030,1781308240000,-634.54,0.00013349,2]
[424942013,1781308240000,-1265.38,0.00012754,2]
[424942008,1781308240000,-933.0,0.00012418,2]
[424942011,1781308240000,-6159.19452706,0.00012657,2]
[424942015,1781308240000,-1200.0,0.000128,4]
[424942028,1781308240000,-181.76121928,0.00013342,2]
[424942105,1781308241000,-350.0,0.00014384,3]
[424942117,1781308241000,-6355.71038673,0.000147,2]
[424942113,1781308241000,-1000.0,0.000146,2]
[424942106,1781308241000,-200.0,0.00014495,2]
[424942118,1781308241000,-421.0,0.000147,5]
[424942104,1781308241000,-1265.38,0.00014348,2]
[424942108,1781308241000,-563.97255405,0.00014504,2]
[424942111,1781308241000,-350.0,0.00014582,2]
[424942109,1781308241000,-500.0,0.00014521,2]
[424942110,1781308241000,-350.0,0.00014559,3]
[424942102,1781308241000,-3587.70069406,0.00014319,2]
[424942107,1781308241000,-841.01,0.00014497,2]
[424942116,1781308241000,-634.54,0.00014684,2]
[424942099,1781308241000,-2338.1,0.00014176,2]
[424942114,1781308241000,-2400.0,0.000146,5]
[424942115,1781308241000,-1555.5,0.0001465,2]
[424942119,1781308241000,-3000.0,0.000147,5]
[424942133,1781308241000,-4500.0,0.00014864,2]
[424942132,1781308241000,-222.7681818,0.00014864,2]
[424942130,1781308241000,-271.0,0.00014863,2]
[424942131,1781308241000,-229.0,0.00014863,2]
[424942128,1781308241000,-82074.6869056,0.00014864,2]
[424942127,1781308241000,-9055.0418778,0.00014864,2]
[424942125,1781308241000,-500.0,0.00014849,2]
[424942121,1781308241000,-500.0,0.00014726,2]
[424942129,1781308241000,-235645.11508898,0.00014864,2]
[424942124,1781308241000,-350.0,0.0001482,3]
[424942126,1781308241000,-2000.0,0.0001485,2]
[424942122,1781308241000,-3726.77227223,0.00014764,2]
[424942112,1781308241000,-948.0,0.000146,2]
[424942134,1781308241000,-340.38513784,0.00014864,2]
[424942120,1781308241000,-344.0,0.000147,5]
[424942123,1781308241000,-600.0,0.000148,5]
[424942137,1781308243000,-228.0,0.00014863,2]
[424942138,1781308243000,-687.61368565,0.00014864,2]
[424942140,1781308243000,-1119.03263827,0.00014864,2]
[424942141,1781308243000,-4164.87933335,0.00014864,2]
[424942139,1781308243000,-8234.52193763,0.00014864,2]
[424942165,1781308246000,-2812.72883893,9.553e-05,2]
[424942168,1781308246000,-3384.71945962,0.00014864,2]
[424942167,1781308246000,-904.05416107,9.553e-05,2]
[424942170,1781308246000,-30923.80043709,0.00014864,2]
[424942169,1781308246000,-66556.08133775,0.00014864,2]
[424942180,1781308370000,-2249.98147386,9.553e-05,2]
[424942181,1781308393000,-250.01852614,9.553e-05,2]
[424942186,1781308446000,-1160.057,9.362e-05,2]
[424942189,1781308499000,-1031.99,9.453e-05,2]
[424942190,1781308525000,-1217.9915,9.453e-05,2]
[424942191,1781308577000,-519.08504572,9.452e-05,2]
[424942193,1781308635000,-153.51996351,8.753e-05,2]
[424942196,1781308687000,-2598.8,9.04e-05,2]
[424942201,1781308710000,-883.93576352,9.04e-05,2]
[424942203,1781308762000,-201.26405998,9.45e-05,2]
[424942205,1781308935000,-241.16854145,9.449e-05,2]
[424942207,1781308989000,-150.0,9.449e-05,2]
[424942208,1781309042000,-928.046,9.362e-05,2]
[424942210,1781309095000,-500.0,9.452e-05,2]
[424942211,1781309149000,-288.887742,9.451e-05,2]
[424942212,1781309152000,-246.58960889,9.451e-05,2]
[424942214,1781309202000,-150.0,9.45e-05,2]
[424942220,1781309256000,-318.67135695,9.45e-05,2]
[424942219,1781309256000,-168.81797901,9.45e-05,2]
[424942223,1781309260000,-103.72025831,9.45e-05,2]
[424942221,1781309260000,-181.32864305,9.45e-05,2]
[424942222,1781309260000,-164.95348911,9.45e-05,2]
[424942228,1781309309000,-396.27974169,9.45e-05,2]
[424942232,1781309363000,-150.0,9.448e-05,2]
[424942233,1781309416000,-221.40835814,9.449e-05,2]
[424942259,1781309432000,-500.0,9.449e-05,2]
[424942256,1781309432000,-500.0,9.449e-05,2]
[424942254,1781309432000,-500.0,9.449e-05,2]
[424942251,1781309432000,-500.0,9.449e-05,2]
[424942245,1781309432000,-500.0,9.449e-05,2]
[424942252,1781309432000,-500.0,9.449e-05,2]
[424942250,1781309432000,-500.0,9.449e-05,2]
[424942248,1781309432000,-500.0,9.449e-05,2]
[424942249,1781309432000,-500.0,9.449e-05,2]
[424942244,1781309432000,-500.0,9.449e-05,2]
[424942239,1781309432000,-346.05829284,9.449e-05,2]
[424942246,1781309432000,-500.0,9.449e-05,2]
[424942243,1781309432000,-500.0,9.449e-05,2]
[424942242,1781309432000,-500.0,9.449e-05,2]
[424942241,1781309432000,-500.0,9.449e-05,2]
[424942240,1781309432000,-500.0,9.449e-05,2]
[424942237,1781309432000,-500.0,9.449e-05,2]
[424942238,1781309432000,-153.94170716,9.449e-05,2]
[424942236,1781309432000,-176.86590582,9.449e-05,2]
[424942260,1781309432000,-500.0,9.449e-05,2]
[424942247,1781309432000,-500.0,9.449e-05,2]
[424942261,1781309432000,-500.0,9.449e-05,2]
[424942267,1781309432000,-500.0,9.449e-05,2]
[424942258,1781309432000,-500.0,9.449e-05,2]
[424942309,1781309432000,-6557.13455599,9.453e-05,2]
[424942303,1781309432000,-4805.3496,9.453e-05,2]
[424942317,1781309432000,-3000.0,9.453e-05,2]
[424942314,1781309432000,-627.55596656,9.453e-05,2]
[424942300,1781309432000,-221.64936623,9.451e-05,2]
[424942288,1781309432000,-500.0,9.449e-05,2]
[424942297,1781309432000,-323.12133319,9.449e-05,2]
[424942291,1781309432000,-500.0,9.449e-05,2]
[424942294,1781309432000,-500.0,9.449e-05,2]
[424942282,1781309432000,-500.0,9.449e-05,2]
[424942312,1781309432000,-285.60498281,9.453e-05,2]
[424942278,1781309432000,-500.0,9.449e-05,2]
[424942285,1781309432000,-500.0,9.449e-05,2]
[424942265,1781309432000,-500.0,9.449e-05,2]
[424942306,1781309432000,-2500.0,9.453e-05,2]
[424942263,1781309432000,-500.0,9.449e-05,2]
[424942269,1781309432000,-500.0,9.449e-05,2]
[424942257,1781309432000,-500.0,9.449e-05,2]
[424942274,1781309432000,-500.0,9.449e-05,2]
[424942272,1781309432000,-500.0,9.449e-05,2]
[424942276,1781309432000,-500.0,9.449e-05,2]
[424942280,1781309432000,-500.0,9.449e-05,2]
[424942370,1781309440000,-1025.49280924,9.453e-05,2]
[424942369,1781309440000,-123200.0,9.453e-05,2]
[424942368,1781309440000,-9827.83918639,9.453e-05,2]
[424942367,1781309440000,-1742.6054862,9.453e-05,2]
[424942365,1781309440000,-6021.21035833,9.453e-05,2]
[424942366,1781309440000,-678.76931747,9.453e-05,2]
[424942381,1781309443000,-675.83343097,9.453e-05,2]
[424942380,1781309443000,-500.64937916,9.453e-05,2]
[424942379,1781309443000,-1607.59263891,9.453e-05,2]
[424942378,1781309443000,-1004.04821959,9.453e-05,2]
[424942383,1781309444000,-3681.78634986,9.453e-05,2]
[424942388,1781309446000,-2956.55,9.453e-05,2]
[424942389,1781309446000,-1403.8035403,9.453e-05,2]
[424942391,1781309446000,-212136.00245091,9.453e-05,2]
[424942390,1781309446000,-1263.3692877,9.453e-05,2]
[424942392,1781309576000,-1234.724,9.353e-05,2]
[424942396,1781309628000,-154.7212,9.349e-05,2]
[424942397,1781309682000,-1548.68900525,9.353e-05,2]
[424942398,1781309705000,-1548.68900525,9.353e-05,2]
[424942400,1781309727000,-210.25048181,9.352e-05,2]
[424942403,1781309780000,-500.0,9.352e-05,2]
[424942404,1781309833000,-500.0,9.352e-05,2]
[424942405,1781309887000,-500.0,9.352e-05,2]
[424942407,1781309940000,-500.0,9.352e-05,2]
[424942408,1781309941000,311.0,0.00021,30]
[424942409,1781309994000,-179.46793305,9.352e-05,2]
[424942413,1781310158000,-203.2850549,9.352e-05,2]
[424942415,1781310212000,-2183.5406895,9.353e-05,2]
[424942417,1781310212000,-500.0,9.353e-05,2]
[424942416,1781310212000,-500.0,9.353e-05,2]
[424942418,1781310216000,-500.0,9.353e-05,2]
[424942422,1781310217000,-500.0,9.353e-05,2]
[424942423,1781310218000,-500.0,9.353e-05,2]
[424942424,1781310220000,-500.0,9.353e-05,2]
[424942425,1781310221000,-500.0,9.353e-05,2]
[424942426,1781310224000,-500.0,9.353e-05,2]
[424942427,1781310225000,-500.0,9.353e-05,2]
[424942429,1781310227000,-88.8485,9.353e-05,2]
[424942428,1781310227000,-411.1515,9.353e-05,2]
[424942431,1781310265000,-1548.689,9.352e-05,2]
[424942432,1781310319000,-261.46233938,9.352e-05,2]
[424942433,1781310331000,-4584.80456863,9.352e-05,2]
[424942434,1781310373000,-12922.65673274,9.352e-05,2]
[424942435,1781310396000,-12922.65673274,9.352e-05,2]
[424942438,1781310419000,-384.25913095,9.352e-05,2]
[424942437,1781310419000,-12922.6567,9.252e-05,2]
[424942440,1781310432000,-150.0,9.351e-05,2]
[424942442,1781310432000,-770.39403989,9.352e-05,2]
[424942439,1781310432000,-2500.0,9.252e-05,2]
[424942441,1781310432000,-242.16310367,9.351e-05,2]
[424942443,1781310471000,-30517.37744416,9.352e-05,2]
[424942444,1781310495000,-29470.17350261,9.352e-05,2]
[424942445,1781310518000,-29470.17350261,9.352e-05,2]
[424942450,1781310635000,-150.0,9.251e-05,2]
[424942453,1781310637000,-356.82273408,9.252e-05,2]
[424942454,1781310637000,-10645.50617898,9.252e-05,2]
[424942451,1781310637000,-470.49521546,9.252e-05,2]
[424942456,1781310637000,-450.0,9.252e-05,2]
[424942455,1781310637000,-2246.27201538,9.252e-05,2]
[424942452,1781310637000,-1818.58417578,9.252e-05,2]
[424942466,1781310639000,-1627.30935883,9.252e-05,2]
[424942601,1781310643000,195.66565353,9.539e-05,7]
[424942602,1781310643000,-2500.3252123,9.252e-05,2]
[424942603,1781310643000,-65.62984956,9.252e-05,2]
[424942605,1781310643000,-660.5,9.252e-05,2]
[424942606,1781310643000,-3871.49156566,9.252e-05,2]
[424942604,1781310643000,-789.08438898,9.252e-05,2]
[424942609,1781310647000,-278.1554917,9.252e-05,2]
[424942608,1781310647000,-470.63,9.252e-05,2]
[424942610,1781310770000,-150.0,7.953e-05,2]
[424942612,1781310825000,-150.0,7.953e-05,2]
[424942613,1781310877000,-150.0,8.076e-05,2]
[424942615,1781310931000,-150.0,7.833e-05,2]
[424942616,1781310932000,-500.0,7.913e-05,2]
[424942619,1781310984000,-150.0,7.598e-05,2]
[424942622,1781311038000,-1178.459,7.676e-05,2]
[424942624,1781311060000,-1239.2286316,7.665e-05,2]
[424942625,1781311086000,-187.84,7.625e-05,2]
[424942629,1781311136000,-500.0,7.664e-05,2]
[424942630,1781311189000,-287.82,7.541e-05,2]
[424942633,1781311405000,-150.0,7.188e-05,2]
[424942634,1781311427000,160.0,6.044e-05,2]
[424942636,1781311427000,-200.0,7.411e-05,2]
[424942635,1781311427000,54.24,6.044e-05,2]
[424942637,1781311480000,-250.0,7.428e-05,2]
[424942639,1781311481000,-100.0,7.446e-05,2]
[424942638,1781311481000,-150.0,7.437e-05,2]
[424942640,1781311534000,-472.15,7.446e-05,2]
[424942641,1781311536000,-300.0,7.467e-05,2]
[424942642,1781311536000,-172.15,7.468e-05,2]
[424942643,1781311542000,-874.9424846,7.468e-05,2]
[424942644,1781311588000,-1360.16,7.468e-05,2]
[424942645,1781311591000,-1360.16,7.468e-05,2]
[424942646,1781311613000,-1295.85,7.468e-05,2]
[424942647,1781311635000,-1295.85,7.468e-05,2]
[424942648,1781311657000,-1133.90446887,7.468e-05,2]
[424942649,1781311658000,-366.25571436,7.468e-05,2]
[424942650,1781311683000,-1133.90446887,7.468e-05,2]
[424942652,1781311706000,-1724.06648009,7.468e-05,2]
[424942651,1781311706000,-224.06476091,7.467e-05,2]
[424942653,1781311734000,-500.0,7.467e-05,2]
[424942654,1781311748000,-162.3470419,7.466e-05,2]
[424942656,1781311748000,-179.16162218,7.466e-05,2]
[424942655,1781311748000,-156.84533264,7.466e-05,2]
[424942664,1781311748000,-500.0,7.466e-05,2]
[424942657,1781311748000,-189.5221473,7.466e-05,2]
[424942658,1781311748000,-500.0,7.466e-05,2]
[424942660,1781311748000,-500.0,7.466e-05,2]
[424942661,1781311748000,-500.0,7.466e-05,2]
[424942659,1781311748000,-500.0,7.466e-05,2]
[424942662,1781311748000,-419.46913193,7.466e-05,2]
[424942665,1781311748000,-500.0,7.466e-05,2]
[424942663,1781311748000,-500.0,7.466e-05,2]
[424942666,1781311748000,-500.0,7.466e-05,2]
[424942677,1781311748000,-150.0,7.542e-05,2]
[424942667,1781311748000,-500.0,7.466e-05,2]
[424942679,1781311748000,-150.0,7.575e-05,2]
[424942680,1781311748000,-15860.72913075,7.576e-05,2]
[424942678,1781311748000,-2590.07,7.555e-05,2]
[424942675,1781311748000,-617.92564764,7.485e-05,2]
[424942674,1781311748000,-450.56,7.473e-05,2]
[424942676,1781311748000,-928.55,7.485e-05,2]
[424942671,1781311748000,-500.0,7.466e-05,2]
[424942672,1781311748000,-500.0,7.466e-05,2]
[424942670,1781311748000,-500.0,7.466e-05,2]
[424942668,1781311748000,-500.0,7.466e-05,2]
[424942673,1781311748000,-1577.83638321,7.468e-05,2]
[424942669,1781311748000,-300.0,7.466e-05,2]
[424942682,1781311751000,-40614.95238,7.576e-05,2]
[424942681,1781311751000,-250.0,7.467e-05,2]
[424942684,1781311752000,-8491.99001818,7.576e-05,2]
[424942683,1781311752000,-150.0,7.467e-05,2]
[424942688,1781311758000,-1540.7284369,7.576e-05,2]
[424942686,1781311758000,-3159.62406559,7.576e-05,2]
[424942687,1781311758000,-3159.62406559,7.576e-05,2]
[424942690,1781311758000,179.95,7.466e-05,2]
[424942691,1781311758000,161.35,7.466e-05,2]
[424942692,1781311758000,156.4807469,7.466e-05,2]
[424942693,1781311758000,343.5192531,7.466e-05,2]
[424942689,1781311758000,158.7,7.466e-05,2]
[424942694,1781311759000,122.5307469,7.466e-05,2]
[424942696,1781311759000,161.61463404,7.466e-05,2]
[424942695,1781311759000,164.85,7.466e-05,2]
[424942697,1781311759000,51.00461906,7.466e-05,2]
[424942698,1781311759000,500.0,7.466e-05,2]
[424942700,1781311759000,16.41427426,7.466e-05,2]
[424942701,1781311759000,483.58572574,7.466e-05,2]
[424942703,1781311759000,500.0,7.466e-05,2]
[424942702,1781311759000,500.0,7.466e-05,2]
[424942704,1781311759000,36.53586454,7.466e-05,2]
[424942705,1781311759000,153.01588694,7.466e-05,2]
[424942706,1781311759000,110.44824852,7.466e-05,2]
[424942707,1781311759000,132.38469931,7.466e-05,2]
[424942699,1781311759000,500.0,7.466e-05,2]
[424942708,1781311761000,-367.61530069,7.466e-05,2]
[424942709,1781311761000,-500.0,7.466e-05,2]
[424942712,1781311761000,-6024.26774731,7.576e-05,2]
[424942711,1781311761000,-500.0,7.466e-05,2]
[424942710,1781311761000,-500.0,7.466e-05,2]
[424942713,1781311764000,-8196.74108995,7.576e-05,2]
[424942714,1781311771000,-35362.38253227,7.576e-05,2]
[424942715,1781311782000,-500.0,7.466e-05,2]
[424942718,1781311782000,-500.0,7.466e-05,2]
[424942716,1781311782000,-500.0,7.466e-05,2]
[424942720,1781311782000,-500.0,7.466e-05,2]
[424942719,1781311782000,-500.0,7.466e-05,2]
[424942721,1781311782000,-316.82359695,7.466e-05,2]
[424942717,1781311782000,-500.0,7.466e-05,2]
[424942726,1781311783000,-1141.44571172,7.576e-05,2]
[424942725,1781311783000,-2133.6471939,7.576e-05,2]
[424942724,1781311783000,-500.0,7.466e-05,2]
[424942723,1781311783000,-500.0,7.466e-05,2]
[424942722,1781311783000,-183.17640305,7.466e-05,2]
[424942728,1781311808000,-500.0,7.466e-05,2]
[424942729,1781311808000,-300.0,7.575e-05,2]
[424942727,1781311808000,-500.0,7.466e-05,2]
[424942731,1781311808000,-3472.32545506,7.576e-05,2]
[424942732,1781311808000,-1531.37014204,7.576e-05,2]
[424942730,1781311808000,-2172.32545506,7.576e-05,2]
[424942753,1781311831000,-385.58,7.913e-05,2]
[424942751,1781311831000,-150.0,7.841e-05,2]
[424942750,1781311831000,-2905.72,7.835e-05,2]
[424942748,1781311831000,-150.0,7.766e-05,2]
[424942749,1781311831000,-1920.14,7.767e-05,2]
[424942747,1781311831000,-6052.509,7.735e-05,2]
[424942746,1781311831000,-154.87243249,7.693e-05,2]
[424942744,1781311831000,-222.63972367,7.646e-05,2]
[424942745,1781311831000,-150.0,7.691e-05,2]
[424942743,1781311831000,-171.91306595,7.638e-05,2]
[424942741,1781311831000,-150.0,7.617e-05,2]
[424942740,1781311831000,-268474.52704944,7.576e-05,2]
[424942739,1781311831000,-584.79955105,7.576e-05,2]
[424942738,1781311831000,-387.105,7.576e-05,2]
[424942737,1781311831000,-486.90471485,7.576e-05,2]
[424942736,1781311831000,-320.124,7.576e-05,2]
[424942734,1781311831000,-250.0,7.521e-05,2]
[424942735,1781311831000,-873.87676034,7.576e-05,2]
[424942754,1781311831000,-254.0,7.916e-05,2]
[424942742,1781311831000,-171.91306596,7.638e-05,2]
[424942755,1781311831000,-166.66,7.997e-05,2]
[424942765,1781311831000,-250.0,8.213e-05,2]
[424942757,1781311831000,-158.03,8.172e-05,2]
[424942752,1781311831000,-2836.97,7.898e-05,2]
[424942782,1781311831000,-885.58,8.902e-05,2]
[424942781,1781311831000,-166.66,8.789e-05,2]
[424942776,1781311831000,-173.05383907,8.331e-05,2]
[424942774,1781311831000,-300.0,8.273e-05,2]
[424942779,1781311831000,-166.66,8.525e-05,2]
[424942777,1781311831000,-255.0,8.333e-05,2]
[424942780,1781311831000,-1132.5193657,8.552e-05,2]
[424942778,1781311831000,-1063.17695936,8.452e-05,2]
[424942773,1781311831000,-166.66,8.261e-05,2]
[424942775,1781311831000,-6542.52,8.325e-05,2]
[424942772,1781311831000,-209.78,8.223e-05,2]
[424942767,1781311831000,-3205.58,8.219e-05,2]
[424942768,1781311831000,-2000.0,8.219e-05,2]
[424942766,1781311831000,-193.33491251,8.215e-05,2]
[424942756,1781311831000,-1546.73,8.167e-05,2]
[424942763,1781311831000,-226.51752098,8.213e-05,2]
[424942761,1781311831000,-250.0,8.213e-05,2]
[424942758,1781311831000,-595.109268,8.178e-05,2]
[424942771,1781311831000,-150.22196519,8.219e-05,2]
[424942759,1781311831000,-193.0,8.213e-05,2]
[424942816,1781311832000,-649.0,0.00010083,2]
[424942815,1781311832000,-3156.64,0.00010027,2]
[424942813,1781311832000,-391.52531308,0.0001,2]
[424942810,1781311832000,-163.66,0.0001,2]
[424942812,1781311832000,-326.99050952,0.0001,2]
[424942809,1781311832000,-885.58,9.891e-05,2]
[424942807,1781311832000,-615.0,9.589e-05,2]
[424942818,1781311832000,-23498.0,0.00010192,2]
[424942811,1781311832000,-190.83726701,0.0001,2]
[424942814,1781311832000,-500.0,0.0001001,2]
[424942827,1781311832000,-2135.93,0.00010475,2]
[424942819,1781311832000,-2000.0,0.00010274,2]
[424942820,1781311832000,-3156.64,0.00010278,2]
[424942821,1781311832000,-500.0,0.00010284,2]
[424942822,1781311832000,-35979.69040338,0.000103,2]
[424942824,1781311832000,-18660.33440816,0.000103,2]
[424942823,1781311832000,-27086.62000359,0.000103,2]
[424942825,1781311832000,-1235.16,0.000103,2]
[424942826,1781311832000,-150.99,0.00010475,2]
[424942829,1781311832000,-4999.99,0.00010475,2]
[424942828,1781311832000,-1626.84,0.00010475,2]
[424942817,1781311832000,-250.0,0.00010099,2]
[424942805,1781311832000,-500.0,9.462e-05,2]
[424942796,1781311832000,-831.2865767,9.329e-05,2]
[424942804,1781311832000,-1014.1049555,9.45e-05,2]
[424942830,1781311832000,-3156.64,0.00010529,2]
[424942783,1781311832000,-166.66,9.053e-05,2]
[424942784,1781311832000,-1000.0,9.067e-05,2]
[424942785,1781311832000,-500.0,9.123e-05,2]
[424942786,1781311832000,-150.0,9.152e-05,2]
[424942789,1781311832000,-500.0,9.188e-05,2]
[424942788,1781311832000,-433.0,9.166e-05,2]
[424942787,1781311832000,-150.0,9.152e-05,2]
[424942790,1781311832000,-170.54,9.188e-05,2]
[424942792,1781311832000,-11395.1523,9.252e-05,2]
[424942808,1781311832000,-500.0,9.736e-05,2]
[424942798,1781311832000,-151.0,9.349e-05,2]
[424942795,1781311832000,-166.66,9.317e-05,2]
[424942794,1781311832000,-500.0,9.26e-05,2]
[424942793,1781311832000,-365.209112,9.252e-05,2]
[424942797,1781311832000,-151.0,9.349e-05,2]
[424942799,1781311832000,-160.0,9.398e-05,2]
[424942800,1781311832000,-151.0,9.449e-05,2]
[424942802,1781311832000,-151.0,9.45e-05,2]
[424942801,1781311832000,-151.0,9.45e-05,2]
[424942803,1781311832000,-155.87880589,9.45e-05,2]
[424942806,1781311832000,-158.03,9.52e-05,2]
[424942791,1781311832000,-2000.0,9.247e-05,2]
[424942831,1781311832000,-380.81750763,0.00010558,2]
[424942862,1781311832000,-2430.63186634,0.00011099,2]
[424942832,1781311832000,-200.0,0.00010757,2]
[424942858,1781311832000,-500.0,0.00011098,2]
[424942860,1781311832000,-2430.63186634,0.00011099,2]
[424942867,1781311832000,-3305.88721663,0.00011099,2]
[424942866,1781311832000,-3305.88721663,0.00011099,2]
[424942865,1781311832000,-3305.88721663,0.00011099,2]
[424942863,1781311832000,-2430.63186634,0.00011099,2]
[424942864,1781311832000,-3305.88721672,0.00011099,2]
[424942870,1781311832000,-161.09,0.00011233,2]
[424942871,1781311832000,-500.0,0.0001128,9]
[424942872,1781311832000,-500.0,0.00011281,2]
[424942853,1781311832000,-439.64,0.00011,7]
[424942868,1781311832000,-454.0,0.00011135,5]
[424942873,1781311832000,-500.0,0.00011281,2]
[424942878,1781311832000,-500.0,0.00011281,2]
[424942875,1781311832000,-500.0,0.00011281,2]
[424942880,1781311832000,-400.98887108,0.00011281,2]
[424942877,1781311832000,-500.0,0.00011281,2]
[424942876,1781311832000,-500.0,0.00011281,2]
[424942879,1781311832000,-500.0,0.00011281,2]
[424942882,1781311832000,-500.0,0.00011281,2]
[424942881,1781311832000,-99.01112892,0.00011281,2]
[424942833,1781311832000,-3156.64,0.00010779,2]
[424942874,1781311832000,-500.0,0.00011281,2]
[424942854,1781311832000,-3156.64,0.0001103,2]
[424942869,1781311832000,-831.2865767,0.00011216,2]
[424942856,1781311832000,-1826.884359,0.00011056,2]
[424942855,1781311832000,-215.654283,0.00011056,2]
[424942838,1781311832000,-500.0,0.00010958,2]
[424942839,1781311832000,-500.0,0.00010958,3]
[424942836,1781311832000,-885.58,0.0001088,2]
[424942834,1781311832000,-976.547687,0.00010834,2]
[424942837,1781311832000,-500.0,0.00010958,2]
[424942841,1781311832000,-500.0,0.00010958,5]
[424942840,1781311832000,-500.0,0.00010958,4]
[424942843,1781311832000,-500.0,0.00010958,7]
[424942842,1781311832000,-500.0,0.00010958,6]
[424942844,1781311832000,-500.0,0.00010958,8]
[424942835,1781311832000,-1713.786904,0.00010877,2]
[424942852,1781311832000,-7226.13486827,0.00011,2]
[424942846,1781311832000,-500.0,0.00010958,2]
[424942845,1781311832000,-500.0,0.00010958,2]
[424942849,1781311832000,-1351.86,0.00010959,2]
[424942847,1781311832000,-150.0,0.00010959,2]
[424942850,1781311832000,-166.66,0.00010959,2]
[424942851,1781311832000,-1286.89619659,0.00010999,3]
[424942859,1781311832000,-2430.63186636,0.00011099,2]
[424942857,1781311832000,-166.66,0.00011068,2]
[424942861,1781311832000,-2430.63186634,0.00011099,2]
[424942848,1781311832000,-150.0,0.00010959,2]
[424942917,1781311833000,-500.0,0.00011281,2]
[424942918,1781311833000,-500.0,0.00011281,2]
[424942920,1781311833000,-500.0,0.00011281,2]
[424942916,1781311833000,-500.0,0.00011281,2]
[424942909,1781311833000,-500.0,0.00011281,2]
[424942915,1781311833000,-500.0,0.00011281,2]
[424942913,1781311833000,-500.0,0.00011281,2]
[424942912,1781311833000,-500.0,0.00011281,2]
[424942919,1781311833000,-500.0,0.00011281,2]
[424942908,1781311833000,-500.0,0.00011281,2]
[424942914,1781311833000,-500.0,0.00011281,2]
[424942922,1781311833000,-500.0,0.00011281,2]
[424942928,1781311833000,-500.0,0.00011281,2]
[424942933,1781311833000,-500.0,0.00011281,2]
[424942923,1781311833000,-500.0,0.00011281,2]
[424942925,1781311833000,-500.0,0.00011281,2]
[424942924,1781311833000,-500.0,0.00011281,2]
[424942926,1781311833000,-500.0,0.00011281,2]
[424942929,1781311833000,-500.0,0.00011281,2]
[424942930,1781311833000,-500.0,0.00011281,2]
[424942931,1781311833000,-500.0,0.00011281,2]
[424942927,1781311833000,-500.0,0.00011281,2]
[424942932,1781311833000,-500.0,0.00011281,2]
[424942921,1781311833000,-500.0,0.00011281,2]
[424942910,1781311833000,-500.0,0.00011281,2]
[424942888,1781311833000,-500.0,0.00011281,2]
[424942906,1781311833000,-500.0,0.00011281,2]
[424942885,1781311833000,-500.0,0.00011281,2]
[424942884,1781311833000,-500.0,0.00011281,2]
[424942890,1781311833000,-500.0,0.00011281,2]
[424942886,1781311833000,-500.0,0.00011281,2]
[424942889,1781311833000,-500.0,0.00011281,2]
[424942883,1781311833000,-500.0,0.00011281,2]
[424942892,1781311833000,-500.0,0.00011281,2]
[424942887,1781311833000,-500.0,0.00011281,2]
[424942891,1781311833000,-500.0,0.00011281,2]
[424942893,1781311833000,-500.0,0.00011281,2]
[424942897,1781311833000,-500.0,0.00011281,2]
[424942899,1781311833000,-500.0,0.00011281,2]
[424942894,1781311833000,-500.0,0.00011281,2]
[424942895,1781311833000,-500.0,0.00011281,2]
[424942896,1781311833000,-500.0,0.00011281,2]
[424942901,1781311833000,-500.0,0.00011281,2]
[424942900,1781311833000,-500.0,0.00011281,2]
[424942898,1781311833000,-500.0,0.00011281,2]
[424942902,1781311833000,-500.0,0.00011281,2]
[424942903,1781311833000,-500.0,0.00011281,2]
[424942905,1781311833000,-500.0,0.00011281,2]
[424942904,1781311833000,-500.0,0.00011281,2]
[424942907,1781311833000,-500.0,0.00011281,2]
[424942911,1781311833000,-500.0,0.00011281,2]
[424942935,1781311833000,-500.0,0.00011281,2]
[424942944,1781311833000,-500.0,0.00011281,2]
[424942936,1781311833000,-500.0,0.00011281,2]
[424942964,1781311833000,-9999.99,0.00011281,2]